Cogmind - Beta 11.1 @@@ ROGUE MODE // 2022.09.05 @ 20:42:53 Player: sxnwlfkk Result: Self-destructed Performance ------------- Evolutions (3) 1500 Regions Visited (8) 1600 Robots Destroyed (36) 180 Value Destroyed (799) 799 Prototype IDs (23) 460 Alien Tech Used (0) 0 Bonus (-44) -44 TOTAL SCORE: 4495 Bonus ------- Follower Combat Kills 340 Aligned with FarCom 300 Friendly Fire -684 Cogmind --------- Core Integrity 668/700 Matter 248/300 Energy 125/125 System Corruption 0% Temperature Cool (0) Movement Rolling (115) Ox1 Location -7/Factory Parts ------- > --- POWER (1) -------- Light Ion Engine > --- PROPULSION (4) --- Medium Treads Medium Treads Armored Huge Wheel > --- UTILITY (5) ------ Heat Sink Large Storage Unit Seismic Detector 0b10 Alert Chip Hardened Medium Armor Plating > --- WEAPON (3) ------- Arc Projector Light Assault Rifle Light Assault Rifle > --- INVENTORY (15) --- Micro Nuclear Core Medium Treads Medium Treads Carbon-fiber Leg Xenon Bombardment Thruster Improved Signal Interpreter Seismic Detector Advanced Targeting Computer Recoil Stabilizer Hardened Medium Armor Plating Gatling Laser Light Assault Rifle Assault Cannon Grenade Launcher Peak State ------------ > --- POWER ------------ Light Ion Engine > --- PROPULSION ------- Medium Treads Medium Treads Armored Huge Wheel > --- UTILITY ---------- Heat Sink Large Storage Unit Seismic Detector 0b10 Alert Chip Hardened Medium Armor Plating > --- WEAPON ----------- Arc Projector Light Assault Rifle Light Assault Rifle > --- INVENTORY -------- Micro Nuclear Core Medium Treads Medium Treads Carbon-fiber Leg Xenon Bombardment Thruster Improved Signal Interpreter Seismic Detector Advanced Targeting Computer Recoil Stabilizer Hardened Medium Armor Plating Gatling Laser Light Assault Rifle Assault Cannon Grenade Launcher [Rating: 39] Favorites ----------- Power Light Ion Engine Engine Light Ion Engine Propulsion Aluminum Leg Treads Light Treads Leg Aluminum Leg Wheel Wheel Utility Seismic Detector Device Seismic Detector Storage Large Storage Unit Processor 0b10 Alert Chip Protection Core Shielding Weapon Light Assault Rifle Energy Gun Arc Projector Ballistic Gun Light Assault Rifle Ballistic Cannon Assault Cannon Launcher Grenade Launcher Build | -11 -10 -10 -10 -9 -8 -7 -7 -7 ------- Run | Scr Mat Min Exi Min Mat Fac Was Fac Slots Evolved 6 | . . . . . 4 2 . . Power . | . . . . . . . . . Propulsion 2 | . . . . . 2 . . . Utility 3 | . . . . . 2 1 . . Weapon 1 | . . . . . . 1 . . Parts Attached 48 | 6 4 . . 3 19 7 3 6 Power 4 | 2 . . . . 2 . . . Engine 4 | 2 . . . . 2 . . . Core . | . . . . . . . . . Reactor . | . . . . . . . . . Propulsion 16 | 1 1 . . 1 7 1 . 5 Treads 7 | . 1 . . . 2 . . 4 Leg 5 | . . . . . 4 1 . . Wheel 4 | 1 . . . 1 1 . . 1 Hover . | . . . . . . . . . Flight . | . . . . . . . . . Utility 12 | 2 1 . . . 6 3 . . Device 3 | 1 . . . . . 2 . . Storage 2 | 1 1 . . . . . . . Processor 1 | . . . . . 1 . . . Hackware . | . . . . . . . . . Protection 6 | . . . . . 5 1 . . Artifact . | . . . . . . . . . Weapon 16 | 1 2 . . 2 4 3 3 1 Energy Gun 5 | . 2 . . . . 1 1 1 Energy Cannon . | . . . . . . . . . Ballistic Gun 6 | 1 . . . 1 2 2 . . Ballistic Cannon 1 | . . . . . 1 . . . Launcher 4 | . . . . 1 1 . 2 . Special Weapon . | . . . . . . . . . Impact Weapon . | . . . . . . . . . Slashing Weapon . | . . . . . . . . . Piercing Weapon . | . . . . . . . . . Special Melee Weapon . | . . . . . . . . . Unidentified Prototypes . | . . . . . . . . . Parts Lost 16 | . 1 . . 1 14 . . . Power 2 | . . . . . 2 . . . Propulsion 6 | . . . . 1 5 . . . Utility 2 | . . . . . 2 . . . Weapon 6 | . 1 . . . 5 . . . Highest Loss Streak 5 | . 1 . . 1 5 . . . To Critical Strikes . | . . . . . . . . . Average Slot Usage (%) 95 | . 99 100 100 100 83 94 100 96 Engine 9 | . 14 14 14 14 7 7 7 7 Treads 8 | . 14 14 14 14 13 . . 6 Leg 12 | . . . . . 3 25 30 17 Wheel 6 | . 14 14 14 14 10 . . 2 Device 13 | . 14 14 14 14 9 15 15 15 Storage 9 | . 14 14 14 14 9 7 7 7 Processor 5 | . . . . . 9 7 7 7 Protection 5 | . . . . . 8 7 7 7 Energy Gun 7 | . 13 14 14 14 2 5 2 5 Ballistic Gun 13 | . 14 14 14 13 8 15 15 15 Launcher 1 | . . . . . 1 1 4 1 Naked Turns . | . . . . . . . . . Heaviest Build 39 | 12 29 29 29 31 32 39 39 39 Greatest Support 84 | 10 10 10 10 10 40 45 45 84 Greatest Overweight (x) 3 | 1 2 2 2 3 2 1 . 1 Average Overweight (x) 1 | . 1 2 2 2 1 . . . Largest Inventory Capacity 15 | 8 15 15 15 15 15 15 15 15 Average Capacity 14 | 7 13 15 15 15 15 15 15 15 Most Carried 15 | 8 13 13 14 14 12 15 15 15 Average Carried 11 | 6 10 13 13 13 9 9 14 14 Final Capacity 15 | 8 15 15 15 15 15 15 15 15 Final Carried 15 | 8 13 13 14 13 7 15 15 14 Class Distribution -------------------- 43% | Mutant 42% | Scavenger-Skirmisher 14% | Scavenger-Mutant Dominant Class ---------------- Mutant | -10/Materials Mutant | -10/Mines Mutant | -10/Exiles Mutant | -9/Mines Mutant | -8/Materials Scavenger-Skirmisher | -7/Factory Scavenger-Skirmisher | -7/Waste Scavenger-Skirmisher | -7/Factory Resources | -11 -10 -10 -10 -9 -8 -7 -7 -7 ----------- Run | Scr Mat Min Exi Min Mat Fac Was Fac Matter Collected 853 | 266 51 . . . 255 43 220 18 Remotely . | . . . . . . . . . Salvage Created 930 | 16 176 . . 33 495 16 57 137 Parts 57 | 3 16 . . 4 28 1 2 3 Haulers Intercepted . | . . . . . . . . . Recyclers Shooed . | . . . . . . . . . Parts Field Recycled . | . . . . . . . . . Retrieved Matter . | . . . . . . . . . Parts Self-Destructed . | . . . . . . . . . Prevented . | . . . . . . . . . Kills | -11 -10 -10 -10 -9 -8 -7 -7 -7 ------- Run | Scr Mat Min Exi Min Mat Fac Was Fac Combat Hostiles Destroyed 29 | . 8 . . 4 16 . . 1 Guns 19 | . 6 . . 1 11 . . 1 Cannons 1 | . . . . . 1 . . . AOE 9 | . 2 . . 3 4 . . . Classes Destroyed 8 | 1 2 . . 1 3 . 1 . Tunneler 1 | 1 . . . . . . . . Watcher 3 | . . . . . 2 1 . . Swarmer 16 | . 6 . . 3 7 . . . Grunt 8 | . 2 . . . 6 . . . Brawler 2 | . . . . . 1 . . 1 Sentry 2 | . . . . . 2 . . . Assembled 1 | . . . . 1 . . . . Wasp 1 | . . . . . . . 1 . Thug 2 | . . . . . . . 1 1 Butcher 1 | . . . . . . . 1 . Best Kill Streak 8 | 1 5 . . 3 8 1 . 1 Combat Bots Only 6 | . 5 . . 3 6 . . 1 Max Kills in Single Turn 4 | 1 2 . . 1 4 1 2 1 Gunslinging . | . . . . . . . . . Exploded 2 | . 2 . . 1 2 . . . Melee . | . . . . . . . . . Uniques/NPCs Destroyed . | . . . . . . . . . Combat | -11 -10 -10 -10 -9 -8 -7 -7 -7 -------- Run | Scr Mat Min Exi Min Mat Fac Was Fac Damage Taken 2202 | . 295 . . 212 1458 98 3 136 Core 451 | . 53 . . 48 318 . 1 31 Absorbed by Shields . | . . . . . . . . . Redirected to Shielding 20 | . . . . . 20 . . . Core Remaining (%) 67 | 100 . . . 59 42 . . . Volleys Fired 116 | 6 16 . . 7 69 3 10 5 Largest 3 | 1 2 . . 2 2 3 3 3 Hottest 95 | 20 60 . . 60 64 95 95 95 Shots Fired 182 | 6 32 . . 11 91 9 18 15 Gun 160 | 6 32 . . 8 80 9 10 15 Cannon 10 | . . . . . 10 . . . Launcher 12 | . . . . 3 1 . 8 . Special . | . . . . . . . . . Kinetic 136 | 6 16 . . 4 86 6 8 10 Thermal . | . . . . . . . . . Explosive 12 | . . . . 3 1 . 8 . Electromagnetic 34 | . 16 . . 4 4 3 2 5 Robot Hit Streak 13 | 3 7 . . 8 13 12 7 5 Robot Miss Streak 4 | 2 4 . . 1 4 1 2 1 Penetration Max . | . . . . . . . . . Secondary Targets 4 | . . . . . 3 . . 1 Max Gunslinging Chain 1 | . . . . . 1 . . 1 Shots Hit Robots 118 | 4 16 . . 6 61 8 13 10 Core Hits 76 | 2 13 . . 8 33 6 11 3 Critical Kills 1 | . . . . . 1 . . . Critical Parts Destroyed . | . . . . . . . . . Critical Strikes 1 | . . . . . 1 . . . Destroy 1 | . . . . . 1 . . . Melee Attacks . | . . . . . . . . . Impact . | . . . . . . . . . Slashing . | . . . . . . . . . Piercing . | . . . . . . . . . Sneak Attacks . | . . . . . . . . . Combat Hostiles . | . . . . . . . . . Follow-up Attacks . | . . . . . . . . . Damage Inflicted 2589 | 30 213 . . 201 1196 67 770 112 Guns 947 | 30 163 . . 61 464 67 50 112 Cannons 182 | . . . . . 182 . . . Explosions 1456 | . 50 . . 140 546 . 720 . Melee . | . . . . . . . . . Ramming 4 | . . . . . 4 . . . Kinetic 886 | 30 58 . . 29 610 46 49 64 Thermal 528 | . 50 . . . 478 . . . Explosive 928 | . . . . 140 68 . 720 . Electromagnetic 243 | . 105 . . 32 36 21 1 48 Impact . | . . . . . . . . . Slashing . | . . . . . . . . . Piercing . | . . . . . . . . . Highest Corruption 3 | . . . . . 3 . . . Average Corruption 3 | . . . . . 3 . . . Corruption Purged . | . . . . . . . . . Corruption Blocked . | . . . . . . . . . Effects 5 | . . . . . 5 . . . Message Errors 1 | . . . . . 1 . . . Matter Fused 2 | . . . . . 2 . . . Energy Discharges 1 | . . . . . 1 . . . Data Loss (minor) 1 | . . . . . 1 . . . Overload Shots . | . . . . . . . . . Overflow Damage 85 | . . . . 1 84 . . . Projectiles . | . . . . . . . . . Explosions 85 | . . . . 1 84 . . . Melee . | . . . . . . . . . Knockbacks . | . . . . . . . . . Impact . | . . . . . . . . . Kinetic . | . . . . . . . . . Secondary . | . . . . . . . . . Self-Inflicted Damage 143 | . 28 . . . 115 . . . Shots 4 | . 1 . . . 3 . . . Rammed 1 | . . . . . 1 . . . Targets Rammed 1 | . . . . . 1 . . . Kicked . | . . . . . . . . . Crushed . | . . . . . . . . . Highest Temperature 110 | . 110 . . 20 54 28 26 54 Average Temperature 24 | . 35 . . 15 19 14 10 26 Received Heat Transfer 653 | . 78 . . 20 495 24 . 36 Siege Activations . | . . . . . . . . . Robots Corrupted 1 | . . . . . . . . 1 Combat Hostiles . | . . . . . . . . . Parts Fried 2 | . . . . . . . . 2 Impact Corruptions . | . . . . . . . . . Robots Melted . | . . . . . . . . . Combat Hostiles . | . . . . . . . . . Parts Melted . | . . . . . . . . . Heat Transferred 500 | . 100 . . . 400 . . . Parts Sabotaged . | . . . . . . . . . Parts Stolen . | . . . . . . . . . Parts Stripped . | . . . . . . . . . Power Chain Reactions 1 | . 1 . . . . . . . Missiles Intercepted . | . . . . . . . . . Alert | -11 -10 -10 -10 -9 -8 -7 -7 -7 ------- Run | Scr Mat Min Exi Min Mat Fac Was Fac Peak Influence 284 | 5 243 94 . 100 284 112 36 105 Initial 94 | . 3 94 . . 35 74 11 1 Average 84 | 1 178 94 . 52 167 47 8 46 Maximum Alert Level 1 | . 1 . . . 1 . . . Low Security (%) 84 | 100 35 100 . 100 61 100 100 100 Level 1 15 | . 64 . . . 38 . . . Level 2 . | . . . . . . . . . Level 3 . | . . . . . . . . . Level 4 . | . . . . . . . . . Level 5 . | . . . . . . . . . High Security . | . . . . . . . . . Max Security . | . . . . . . . . . Squads Dispatched 3 | . . . . . 2 1 . . Investigation . | . . . . . . . . . Extermination 1 | . . . . . . 1 . . Reinforcement 2 | . . . . . 2 . . . Assault . | . . . . . . . . . Garrison . | . . . . . . . . . Intercept . | . . . . . . . . . Searches Triggered . | . . . . . . . . . Construction Impeded 1 | . . . . . 1 . . . Haulers Reinforced . | . . . . . . . . . Active Scanning Responses . | . . . . . . . . . Cargo Convoy Interrupts . | . . . . . . . . . Stealth | -11 -10 -10 -10 -9 -8 -7 -7 -7 --------- Run | Scr Mat Min Exi Min Mat Fac Was Fac Distress Signals 5 | . 2 . . . 3 . . . Communications Jammed . | . . . . . . . . . Distress Signals . | . . . . . . . . . Times Spotted 61 | . 10 . . 13 23 4 6 5 Peak Tracking Total 9 | . 6 . . 9 8 3 3 3 Tactical Retreats 6 | . 1 . . 2 3 . . . Traps | -11 -10 -10 -10 -9 -8 -7 -7 -7 ------- Run | Scr Mat Min Exi Min Mat Fac Was Fac Traps Triggered 4 | . . . . . . 1 . 3 Indirectly . | . . . . . . . . . Trap Hack Attempts . | . . . . . . . . . Triggered . | . . . . . . . . . Disarmed . | . . . . . . . . . Reprogrammed . | . . . . . . . . . Reused . | . . . . . . . . . Traps Extracted . | . . . . . . . . . Installed . | . . . . . . . . . Triggered . | . . . . . . . . . Machines | -11 -10 -10 -10 -9 -8 -7 -7 -7 ---------- Run | Scr Mat Min Exi Min Mat Fac Was Fac Machines Disabled 2 | . . . . . 2 . . . Max in Single Turn 2 | . . . . . 2 . . . Machines Sabotaged . | . . . . . . . . . Garrisons Compromised . | . . . . . . . . . Overloaded Fab Kills . | . . . . . . . . . Hacking | -11 -10 -10 -10 -9 -8 -7 -7 -7 --------- Run | Scr Mat Min Exi Min Mat Fac Was Fac Machines Accessed 7 | . 2 . 1 . 2 1 . 1 Terminals 6 | . 2 . . . 2 1 . 1 Fabricators . | . . . . . . . . . Repair Stations . | . . . . . . . . . Recycling Units . | . . . . . . . . . Scanalyzers . | . . . . . . . . . Garrison Access . | . . . . . . . . . Total Hacks 18 | . 5 . 1 . 5 2 . 5 Successful 8 | . 1 . 1 . 4 1 . 1 Failed 10 | . 4 . . . 1 1 . 4 Catastrophic 3 | . 1 . . . . 1 . 1 Database Lockouts . | . . . . . . . . . Manual 13 | . 5 . 1 . 4 2 . 1 Terminals 17 | . 5 . . . 5 2 . 5 Fabricators . | . . . . . . . . . Repair Stations . | . . . . . . . . . Recycling Units . | . . . . . . . . . Scanalyzers . | . . . . . . . . . Garrison Access . | . . . . . . . . . Terminal Hacks 6 | . 1 . 1 . 3 . . 1 Record 2 | . . . . . 1 . . 1 Robot Analysis 3 | . 1 . . . 2 . . . EX-Prototype ID Bank 1 | . . . 1 . . . . . Fabricator Hacks . | . . . . . . . . . Repair Station Hacks . | . . . . . . . . . Recycling Unit Hacks . | . . . . . . . . . Scanalyzer . | . . . . . . . . . Garrison Access Hacks . | . . . . . . . . . Unauthorized Hacks 2 | . . . . . 1 1 . . Terminals 2 | . . . . . 1 1 . . Botnet 2 | . . . . . 1 1 . . Fabricators . | . . . . . . . . . Repair Stations . | . . . . . . . . . Recycling Units . | . . . . . . . . . Scanalyzers . | . . . . . . . . . Garrison Access . | . . . . . . . . . Data Cores Recovered . | . . . . . . . . . Used . | . . . . . . . . . Hacking Detections 5 | . 2 . . . 1 1 . 1 Full Trace Events . | . . . . . . . . . Feedback Events . | . . . . . . . . . Feedback Blocked . | . . . . . . . . . Robot Schematics Acquired . | . . . . . . . . . Robots Built . | . . . . . . . . . Authchips . | . . . . . . . . . Time . | . . . . . . . . . Total Robot Build Rating . | . . . . . . . . . Part Schematics Acquired . | . . . . . . . . . Parts Built . | . . . . . . . . . Authchips . | . . . . . . . . . Time . | . . . . . . . . . Total Part Build Rating . | . . . . . . . . . Parts Repaired . | . . . . . . . . . Time . | . . . . . . . . . Parts Recycled . | . . . . . . . . . Recycled Matter . | . . . . . . . . . Retrieved Matter . | . . . . . . . . . Retrieved Components . | . . . . . . . . . Parts Scanalyzed . | . . . . . . . . . Part Schematics Acquired . | . . . . . . . . . Parts Damaged . | . . . . . . . . . Bothacking | -11 -10 -10 -10 -9 -8 -7 -7 -7 ------------ Run | Scr Mat Min Exi Min Mat Fac Was Fac Used RIF Installer . | . . . . . . . . . Robots Hacked . | . . . . . . . . . Non-combat . | . . . . . . . . . Combat . | . . . . . . . . . Robot Hacks Applied . | . . . . . . . . . Relay Couplers Released . | . . . . . . . . . Fabnet Peak Effective % . | . . . . . . . . . Robots Rewired 1 | . . . . . . 1 . . Allies Hacked . | . . . . . . . . . Hacks Repelled . | . . . . . . . . . Allies | -11 -10 -10 -10 -9 -8 -7 -7 -7 -------- Run | Scr Mat Min Exi Min Mat Fac Was Fac Total Allies 21 | . . . . . . 1 20 . Largest Group 20 | . . . . . . 1 20 6 Highest-Rated Group 507 | . . . . . . 32 507 179 Highest-Rated Ally 35 | . . . . . . 32 35 32 Total Orders . | . . . . . . . . . Ally Attacks 175 | . . . . . . 7 151 17 Total Damage 5567 | . . . . . . 189 4971 407 Kills 18 | . . . . . . 1 13 4 Allies Corrupted 1 | . . . . . . . . 1 Allies Melted . | . . . . . . . . . Intel | -11 -10 -10 -10 -9 -8 -7 -7 -7 ------- Run | Scr Mat Min Exi Min Mat Fac Was Fac Robot Analysis Total 3 | . 1 . . . 2 . . . Derelict Logs Recovered . | . . . . . . . . . Drone Launches . | . . . . . . . . . Drone Recoveries . | . . . . . . . . . Exploration | -11 -10 -10 -10 -9 -8 -7 -7 -7 ------------- Run | Scr Mat Min Exi Min Mat Fac Was Fac Turns Passed 3324 | 90 323 147 388 162 609 767 256 582 Spaces Moved 2174 | 68 230 121 352 113 296 435 176 383 Core 2 | 2 . . . . . . . . Treads 11 | . . . . . 10 . . 1 Legs 880 | . . . . . 58 435 176 211 Wheels 1281 | 66 230 121 352 113 228 . . 171 Hover . | . . . . . . . . . Flight . | . . . . . . . . . Fastest Speed 50 | 50 95 110 110 110 95 120 120 115 Average Speed 122 | 88 106 110 110 110 115 161 120 117 Slowest Speed 260 | 95 110 110 110 125 260 190 120 160 Overloaded Moves . | . . . . . . . . . Propulsion Burnouts . | . . . . . . . . . Robots Hopped . | . . . . . . . . . Cave-ins Triggered . | . . . . . . . . . Exploration Rate (%) 33 | 4 45 16 62 31 33 14 86 13 Regions Visited 8 Branch Regions 3 Pre-discovered Areas . | . . . . . . . . . Known Exits Taken . | . . . . . . . . . Unknown Exits Taken 6 | 1 1 1 1 1 1 . . . Scrap Searched 1 | . . 1 . . . . . . Spaces Dug 10 | . . . . . 10 . . . Terrain Destroyed 90 | . 2 . . 12 52 . 24 . Melee . | . . . . . . . . . Projectile 1 | . . . . . 1 . . . AOE 89 | . 2 . . 12 51 . 24 . Terrain Rammed . | . . . . . . . . . Walls Destroyed . | . . . . . . . . . Machines Disabled . | . . . . . . . . . Actions | -11 -10 -10 -10 -9 -8 -7 -7 -7 --------- Run | Scr Mat Min Exi Min Mat Fac Was Fac Total 2684 | 91 278 135 352 139 484 495 206 504 Wait 272 | . 22 15 . 17 94 22 16 86 Move 2167 | 67 229 120 351 112 295 435 175 383 Hop . | . . . . . . . . . Pick Up 45 | 11 7 . 1 . 6 17 1 2 Fast Attach 8 | 3 . . . . 3 2 . . Attach 23 | 2 3 . . 1 13 3 . 1 Detach 2 | . . . . . . . . 2 Swap 17 | 1 1 . . 2 3 2 3 5 Drop 13 | 1 . . . . . 7 1 4 Fire 116 | 6 16 . . 7 69 3 10 5 Melee . | . . . . . . . . . Ram 1 | . . . . . 1 . . . Kick . | . . . . . . . . . Crush . | . . . . . . . . . Escape Stasis 16 | . . . . . . . . 16 Rewire 4 | . . . . . . 4 . . Trap . | . . . . . . . . . Miscellaneous . | . . . . . . . . . Route ------- -11/Scrapyard -10/Materials (discovered 2 exits: [*Mat] / [*Min]) -10/Mines (discovered 2 exits: [*Mat] / *Exi) -10/Exiles -9/Mines -8/Materials -7/Factory -7/Waste -7/Factory (discovered 1 exit: [*Fac]) History --------- Turn | Location | Event 23 | -11/Scrapyard | Discovered new exit (range 16) 91 | -11/Scrapyard | Entered Materials 295 | -10/Materials | Discovered new exit (range 3) 310 | -10/Materials | Build established: Mutant 378 | -10/Materials | Discovered new exit (range 13) 414 | -10/Materials | Entered Mines 423 | -10/Mines | Met a Derelict bent on vengeance 469 | -10/Mines | Discovered new exit (range 4) 554 | -10/Mines | Deemed a non-threat by the Exiles lab entrance 555 | -10/Mines | Discovered new exit (range 5) 561 | -10/Mines | Entered Exiles 590 | -10/Exiles | Met 8R-AWN 608 | -10/Exiles | Met EX-HEX 642 | -10/Exiles | Met EX-BIN 781 | -10/Exiles | Aligned with FarCom system 783 | -10/Exiles | Given EX-Vault access code 808 | -10/Exiles | Opened EX-Vault 817 | -10/Exiles | Found 0b10 Alert Chip 842 | -10/Exiles | Warned to stay clear of 0b10 Research branches 874 | -10/Exiles | Met EX-DEC 936 | -10/Exiles | Discovered new exit (range 12) 949 | -10/Exiles | Left Exiles lab with 0b10 Alert Chip 949 | -10/Exiles | Entered Mines 1052 | -9/Mines | Assembled infested the area 1107 | -9/Mines | Discovered new exit (range 4) 1111 | -9/Mines | Entered Materials 1111 | -8/Materials | Evolved 4 slots: Propulsion x2, Utility x2 1302 | -8/Materials | Lost 4 parts (1p1n2w) 1586 | -8/Materials | Lost 3 parts (1p1n1u) 1606 | -8/Materials | Core integrity fell below 50% 1644 | -8/Materials | Lost 5 parts (2n1u2w) 1702 | -8/Materials | Discovered new exit (range 10) 1720 | -8/Materials | Entered Factory 1720 | -7/Factory | Evolved 2 slots: Utility x1, Weapon x1 2162 | -7/Factory | Build established: Scavenger-Skirmisher 2409 | -7/Factory | Discovered new exit (range 5) 2487 | -7/Factory | Sucked down chute 2487 | -7/Factory | Entered Waste 2487 | -7/Waste | Met up with 1 ally sucked down the chute earlier 2517 | -7/Waste | Warlord forces began an assault 2559 | -7/Waste | Spotted C-40 Crusher 2563 | -7/Waste | Spotted C-40 Crusher 2576 | -7/Waste | Allies destroyed C-40 Crusher 2577 | -7/Waste | Allies destroyed C-40 Crusher 2579 | -7/Waste | Spotted C-40 Crusher 2589 | -7/Waste | Allies destroyed C-40 Crusher 2596 | -7/Waste | Spotted C-40 Crusher 2604 | -7/Waste | Allies destroyed C-40 Crusher 2614 | -7/Waste | Spotted C-40 Crusher 2623 | -7/Waste | Allies destroyed C-40 Crusher 2633 | -7/Waste | Spotted C-40 Crusher 2644 | -7/Waste | Allies destroyed C-40 Crusher 2715 | -7/Waste | Discovered new exit (range 12) 2743 | -7/Waste | Entered Factory 2743 | -7/Factory | Accompanied by 6 allies 3056 | -7/Factory | Discovered new exit (range 6) 3325 | -7/Factory | Self-destructed Last Messages --------------- 03279_ Field strength at 50. 03280_ Field strength at 40. 03281_ Field strength at 30. 03282_ Field strength at 20. 03283_ Field strength at 10. 03284_ Stasis field depleted. 03286_ Triggered Stasis Trap. 03286_ A bubble of rippling energy engulfs the area. 03286_ Field strength at 90. 03287_ Field strength at 80. 03288_ Field strength at 70. 03288_ U-05 Engineer lays Concrete. 03289_ Field strength at 60. 03290_ Field strength at 50. 03291_ Field strength at 40. 03292_ Field strength at 30. 03293_ Field strength at 20. 03294_ Field strength at 10. 03295_ Stasis field depleted. 03297_ U-05 Engineer lays Concrete. Map ----- +----------------------------------------------------+ | " " " " # # =! #?] ????????????????????????? | | " " " " # # ## ????????????????????????? | | ### ###########] ????????????????????????? | | #?# #?????????# ????????????????????????? | | ### ###???????# ?"??????????????????????? | | # ######### ? ??????????????????????? | | # ## #+##/#?????????????????????? | | # < / # ######????????????????? | | ###+#+### ## ! # # ????????????????? | | #?# ## # # """" ???????????????? | | # #?### #### # + """" #??????????????? | | # #???# #??# # # """" #??????????????? | | # ##### ########+## # """" #??????????????? | | # ## ^ ^ + #??????????????? | | # ## ##+##### ^ ############??????????? | | # ## # ??# """ ## #??????????? | | T# # ! # = """"" + #??????????? | | # # = # """"" # """""" #??????????? | | ## # # # """""" ????????????? | | ## # # / """"""?????????????? | | ## # # ########m## """"""?????????????? | | ## ######## ???????#m## ????????????? | | # #?????# ???????# ## ???????????? | | T #?????# ??######Y## ???????????? | | #?????#???# ## #??????????? | | ####?????????# @ ##""" #??????????? | | ??????????# ! ##"Y ! #??????????? | | ?????????# = ##""" #??????????? | | ?????Y??# #? #??????????? | | ????????# #???###+####??????????? | | ????????###+####?????????????????????? | | ###### ?????????????????????????????????????? | | #????? ????????????????????????????????????? | | #????? ??????????Y??????????Y??????????????? | | #????? ???????????????????????????????????? | | +????? #??????????????????????????????????? | | ??????? ????????????????????????????????????? | | ??????? ????????????????????????????????????? | | ???????####??????????????????????????????????????? | | ?????????????????????????????????????????????????? | | ?????????????????????????????????????????????????? | | | | | | | | | | | | | | | | | | | +----------------------------------------------------+ Best States ------------- Heat Dissipation 44 Energy Generation 10 Energy Capacity 250 Matter Stores 300 Matter Capacity 300 Sight Range 16 Terrain Scan Density 10 Armor Coverage 225 Core Shielding 20 Evasion (%) 55 Recoil Reduction 3 Item Schematics ----------------- None Robot Schematics ------------------ None Fabricated ------------ Nothing Alien Tech Used ----------------- None Achievements -------------- Backstab root@ Challenges ------------ None Game ------ Seed GreatFortressHammer Manual? 0 Play Time 01:12:42 Cumulative 13.7 hours Start 2022.08.22 @ 08:28:05 End 2022.09.05 @ 20:42:53 Sessions 13 Manual Loads 0 Difficulty Rogue Special Mode None Game No. 17 Rogue 7 Adventurer 10 Explorer 0 Win Type - Total 0 Types 0/0/0/0/0/0/0/0/0 Lore% 14 Gallery% 15 Achievement% 15 Wizard Run 0 Options --------- ASCII 1 Keyboard 1 Movement Vi Keybinds 0 Fullscreen 2 Font 16/Terminus Map View 76x50 Tactical HUD 1 Map Filters NONE Filters NONE Steam 1 RUN: 07399945-c5e0-496a-950b-8a5baa0b6309